bitfinex-derivatives/quotes_ETHF0:USTF0_20250614
["timestamp","ask_amount","ask_price","bid_price","bid_amount"]
[1749931387540,3.2078,2512.7,2512.6,0.79566]
[1749931388333,3.2078,2513.2,2513.1,0.79552]
[1749931388530,3.2078,2513.2,2513.1,31.80252]
[1749931388734,0.662,2513.3,2513.2,0.79549]
[1749931388935,1.378,2513.6,2513.1,31.80252]
[1749931389138,0.79544,2513.4,2513.2,0.79549]
[1749931389842,2.04,2513.6,2513.1,32.257]
[1749931390039,0.79543,2513.4,2513.2,0.79549]
[1749931390243,3.2078,2513.5,2513.2,0.79548]
[1749931390447,3.2078,2513.5,2513.1,33.0525]
[1749931390635,3.2078,2513.5,2513.1,32.257]
[1749931390843,0.662,2513.6,2513.1,34.24575]
[1749931391035,0.662,2513.6,2513.5,0.79539]
[1749931391244,0.662,2513.6,2513.5,25.36339]
[1749931391442,1.45736,2513.6,2513.5,25.36339]
[1749931391741,1.45736,2513.6,2513.5,24.568]
[1749931391945,1.45736,2513.6,2513.5,25.36339]
[1749931392346,1.45736,2513.6,2513.5,24.568]
[1749931394652,1.45736,2513.6,2513.5,25.36339]
[1749931395145,1.45736,2513.6,2513.5,24.568]
[1749931395441,1.45736,2513.6,2513.5,25.36339]
[1749931395647,0.79534,2513.7,2513.6,0.79534]
[1749931396054,0.79536,2513.6,2513.5,31.79738]
[1749931396249,4.00312,2513.8,2513.7,0.79533]
[1749931396455,3.2078,2513.8,2513.5,31.002]
[1749931396755,0.79533,2513.7,2513.6,2.05415]
[1749931397050,0.79533,2513.7,2513.6,0.79535]
[1749931398143,0.79536,2513.6,2513.5,31.79736]
[1749931399652,0.79535,2513.7,2513.6,0.79534]
[1749931401650,4.00312,2513.8,2513.7,0.79533]
[1749931402750,3.2078,2513.8,2513.7,0.79533]
[1749931403153,3.8839,2514.1,2514.0,0.79524]
[1749931403354,4.67912,2514.1,2514.0,24.2556746]
[1749931404256,4.67912,2514.1,2514.0,25.0509146]
[1749931404558,0.79516,2514.3,2514.2,0.79517]
[1749931405260,5.19551,2514.5,2514.0,24.2556746]
[1749931405461,0.7952,2514.2,2514.1,0.79518]
[1749931405661,1.98778,2514.4,2513.7,0.6834]
[1749931405864,0.7953,2513.9,2513.8,31.77728]
[1749931407071,0.7953,2513.9,2513.8,30.982]
[1749931407370,0.7953,2513.9,2513.8,0.7953]
[1749931407560,1.3055,2514.0,2513.8,30.98]
[1749931407763,0.79527,2513.9,2513.8,6.43]
[1749931407963,0.79527,2513.9,2513.8,30.98]
[1749931408567,0.79527,2513.9,2513.8,31.7753]
[1749931408769,0.79527,2513.9,2513.8,30.98]
[1749931408970,0.79527,2513.9,2513.8,31.7753]
[1749931409764,2.10076,2514.0,2513.9,0.79527]
[1749931409964,1.74118319,2514.0,2513.9,0.79527]
[1749931410169,3.2078,2514.1,2514.0,0.79524]
[1749931410367,4.003,2514.1,2514.0,0.79524]
[1749931410574,0.79524,2514.0,2513.9,0.6864]
[1749931410761,0.79533,2513.7,2513.6,7.7875]
[1749931410962,0.79536,2513.6,2513.5,6.49709268]
[1749931411176,0.79536,2513.6,2513.5,0.06809268]
[1749931411570,1.900937,2513.6,2513.5,0.06809268]
[1749931411873,3.195237,2513.6,2513.5,0.06809268]
[1749931412678,3.195237,2513.6,2512.9,0.00597491]
[1749931412679,0.79555,2513.0,2512.9,0.00597491]
[1749931412868,4.00335,2513.0,2512.9,0.00597491]
[1749931413070,5.108927,2513.0,2512.9,0.00597491]
[1749931414172,1.901127,2513.0,2512.9,30.98397491]
[1749931414474,0.79555,2513.0,2512.9,31.84764759]
[1749931414769,0.79555,2513.0,2512.9,31.05206759]
[1749931415073,3.2078,2513.3,2512.9,0.07406759]
[1749931415376,0.79552,2513.1,2513.0,24.548]
[1749931415670,1.903589,2513.1,2513.0,24.548]
[1749931415874,4.603289,2513.1,2513.0,24.548]
[1749931416075,0.79559,2513.0,2512.9,6.50406759]
[1749931416271,6.491759,2513.0,2512.9,6.50406759]
[1749931416575,6.491759,2513.0,2512.9,0.07406759]
[1749931416576,5.696169,2513.0,2512.9,0.07406759]
[1749931419178,11.430169,2513.0,2512.9,0.07406759]
[1749931421287,11.43232458,2513.0,2512.9,0.07406759]
[1749931422479,10.05202458,2513.0,2512.9,0.07406759]
[1749931423374,1.11022458,2513.0,2512.9,0.07406759]
[1749931423581,3.2078,2513.3,2512.9,0.07406759]
[1749931423777,1.11003479,2513.2,2513.0,7.7668]
[1749931424074,1.7576,2513.3,2513.1,24.553]
[1749931424478,1.3184,2513.6,2513.2,5.33909]
[1749931424673,1.3184,2513.6,2513.5,0.79539]
[1749931424874,2.42859715,2513.6,2513.5,0.79539]
[1749931425578,1.11019715,2513.6,2513.5,0.79539]
[1749931426384,1.11019715,2513.6,2513.4,6.431]
[1749931426681,0.79543,2513.4,2513.3,30.984]
[1749931426879,0.79551,2513.2,2513.0,1.46224]
[1749931427076,1.982,2513.4,2513.0,0.6667]
[1749931427269,0.79555,2513.0,2512.9,6.50306759]
[1749931427469,4.00335,2513.0,2512.9,0.07406759]
[1749931427681,5.1133377,2513.0,2512.9,0.07406759]
[1749931427873,10.1133377,2513.0,2512.9,0.07406759]
[1749931428981,1.98897,2512.9,2512.3,6.429]
[1749931429281,0.79575,2512.4,2512.3,7.22477]
[1749931429483,0.79575,2512.4,2512.3,6.429]
[1749931430886,0.79575,2512.4,2512.3,7.22477]
[1749931431482,0.79573,2512.5,2512.4,0.79571]
[1749931431687,0.00597491,2512.6,2512.5,0.79571]
[1749931431988,0.00597491,2512.6,2512.5,4.00351]
[1749931432489,0.00597491,2512.6,2512.5,34.98651]
[1749931432687,0.00597491,2512.6,2512.5,36.24831]
[1749931437989,0.6592,2513.1,2513.0,0.79555]
[1749931438290,10.93032,2513.5,2513.1,0.7955]
[1749931438486,0.79546,2513.3,2513.2,24.554]
[1749931438683,1.90603674,2513.3,2513.2,24.554]
[1749931438989,0.79552,2513.1,2513.0,1.44144]
[1749931439190,0.79552,2513.1,2513.0,32.42544]
[1749931439384,0.79552,2513.1,2513.0,0.6459]
[1749931439584,0.79552,2513.1,2513.0,31.6289]
[1749931440383,0.79552,2513.1,2512.9,6.49709268]
[1749931440384,0.79555,2513.0,2512.9,6.49709268]
[1749931440584,1.90775758,2513.0,2512.9,31.05009268]
[1749931440790,0.79555,2513.0,2512.9,31.84568268]
[1749931441891,1.90460738,2513.0,2512.9,31.84568268]
[1749931442383,1.90516029,2513.0,2512.9,31.84568268]
[1749931442687,1.90497555,2513.0,2512.9,31.05009268]
[1749931443293,1.90497555,2513.0,2512.9,24.62109268]
[1749931443789,1.90497555,2513.0,2512.9,0.06809268]
[1749931443987,1.90497555,2513.0,2512.9,24.62109268]
[1749931444392,2.59277555,2513.0,2512.9,24.62109268]
[1749931445986,5.80057555,2513.0,2512.9,24.62109268]
[1749931448486,5.80057555,2513.0,2512.9,25.41667268]
[1749931448686,5.80057555,2513.0,2512.9,0.06809268]
[1749931448897,0.79571,2512.5,2512.4,7.1133]
[1749931449287,0.79571,2512.5,2512.4,31.6663]
[1749931449493,0.79577,2512.3,2512.2,7.22578]
[1749931449692,0.79577,2512.3,2512.2,30.983]
[1749931449899,0.79577,2512.3,2512.2,31.77881]
[1749931450083,1.90484477,2512.3,2512.2,30.983]
[1749931450496,1.90484477,2512.3,2512.2,31.77881]
[1749931451002,1.90484477,2512.3,2512.2,30.983]
[1749931451693,1.90484477,2512.3,2512.2,24.553]
[1749931451885,2.57074477,2512.3,2512.2,24.553]
[1749931453291,2.57074477,2512.3,2512.2,25.34881]
[1749931453292,1.77497477,2512.3,2512.2,25.34881]
[1749931453491,3.2078,2512.4,2512.3,0.79577]
[1749931453694,3.2078,2512.4,2512.2,24.553]
[1749931453695,3.2078,2512.4,2512.2,25.9271]
[1749931453993,4.00354,2512.4,2512.3,24.554]
[1749931454193,5.11090606,2512.4,2512.3,24.554]
[1749931454697,4.31516606,2512.4,2512.1,0.00597491]
[1749931454894,0.79581,2512.2,2512.1,0.00597491]
[1749931455196,1.90300784,2512.2,2512.1,0.00597491]
[1749931455396,0.79593,2511.8,2511.7,6.43]
[1749931455691,0.79593,2511.8,2511.7,30.985]
[1749931456895,0.79593,2511.8,2511.7,31.78096]
[1749931457101,0.79593,2511.8,2511.7,32.3512]
[1749931458803,0.79593,2511.8,2511.7,33.14716]
[1749931459102,4.5372,2512.3,2511.7,32.3512]
[1749931459296,0.79584,2512.1,2512.0,0.79587]
[1749931459497,0.79584,2512.1,2512.0,25.35287]
[1749931459795,0.79584,2512.1,2512.0,24.557]
[1749931460198,0.79587,2512.0,2511.9,0.79589]
[1749931460400,0.79587,2512.0,2511.9,24.557]
[1749931460802,0.79587,2512.0,2511.8,6.429]
[1749931460803,0.79593,2511.8,2511.7,0.06809268]
[1749931461294,0.79593,2511.8,2511.7,0.86405268]
[1749931461500,9.73769,2512.0,2511.9,0.7959]
[1749931461802,4.5372,2512.3,2511.8,25.1993]
[1749931462109,0.79582,2512.2,2512.1,0.79582]
[1749931462310,3.2078,2512.3,2512.2,0.79581]
[1749931462601,4.00357,2512.3,2512.2,0.79581]
[1749931462913,4.00357,2512.3,2512.2,2.17571]
[1749931463793,0.79581,2512.2,2512.1,30.99]
[1749931463990,0.79581,2512.2,2512.1,24.56]
[1749931464200,0.79581,2512.2,2512.1,24.558]
[1749931468507,0.79584,2512.1,2512.0,0.79585]
[1749931468809,0.7959,2511.9,2511.8,25.99623]
[1749931469204,0.7959,2511.9,2511.8,0.6423]
[1749931469398,0.79593,2511.8,2511.7,0.06809268]
[1749931469707,1.90144467,2511.8,2511.7,0.06809268]
[1749931469906,0.79615,2511.1,2511.0,6.43]
[1749931470106,0.79619,2511.0,2510.9,0.6828]
[1749931470408,0.79625,2510.8,2510.7,6.43]
[1749931470811,0.79631,2510.6,2510.5,1.33397491]
[1749931470997,4.00411,2510.6,2510.5,0.00597491]
[1749931472014,5.10765765,2510.6,2510.5,0.00597491]
[1749931472201,8.9418,2510.6,2509.7,2.6703]
[1749931472510,0.79646,2510.2,2509.9,0.79653]
[1749931472702,0.79646,2510.2,2510.0,1.2841]
[1749931472901,0.79644,2510.2,2510.0,2.08059]
[1749931473701,0.79653,2509.9,2509.8,0.00597491]
[1749931474203,4.00432,2510.0,2509.8,0.00597491]
[1749931474909,3.2078,2510.0,2509.9,0.79653]
[1749931475105,0.79653,2509.9,2509.8,0.00597491]
[1749931476606,0.79668,2509.5,2509.3,3.2078]
[1749931476809,0.79666,2509.5,2509.4,0.79668]
[1749931477208,0.79666,2509.5,2509.3,4.00451]
[1749931477410,0.79669,2509.4,2509.0,7.6954]
[1749931477704,0.79679,2509.1,2509.0,6.433]
[1749931478009,0.79676,2509.2,2509.0,31.088]
[1749931478210,0.79674,2509.3,2509.0,31.088]
[1749931478414,0.00597491,2509.5,2509.4,0.79669]
[1749931478709,0.00597491,2509.5,2509.0,32.3504]
[1749931478914,0.79674,2509.3,2509.1,25.45477]
[1749931479300,0.79676,2509.2,2509.1,24.658]
[1749931479501,0.79679,2509.1,2509.0,31.103]
[1749931479702,0.79679,2509.1,2509.0,31.89982]
[1749931479906,0.79679,2509.1,2509.0,31.103]
[1749931480099,5.19958,2509.4,2508.9,0.00597491]
[1749931480299,4.00462,2509.0,2508.9,0.00597491]
[1749931480506,0.79703,2508.4,2508.2,2.05255]
[1749931480703,0.79704,2508.3,2508.2,1.2555]
[1749931481012,0.79697,2508.6,2508.2,1.2555]
[1749931481210,0.79704,2508.3,2508.2,1.2555]
[1749931481510,0.79707,2508.2,2508.1,24.734]
[1749931482207,1.99245,2508.5,2508.1,24.734]
[1749931482208,1.99245,2508.5,2508.1,0.79711]
[1749931482404,0.79711,2508.1,2508.0,0.00597491]
[1749931483202,0.79711,2508.1,2508.0,0.80309491]
[1749931483404,0.79711,2508.1,2508.0,0.00597491]
[1749931484113,0.79709,2508.2,2508.1,0.7971]
[1749931484413,0.79711,2508.1,2508.0,0.00597491]
[1749931484602,5.37141,2508.1,2508.0,0.00597491]
[1749931485003,3.2078,2508.1,2508.0,0.00597491]
[1749931485204,3.2078,2508.4,2508.3,0.79704]
[1749931486419,3.2078,2508.4,2508.1,2.034]
[1749931486607,0.79711,2508.1,2508.0,31.99510491]
[1749931486809,3.2078,2508.4,2508.0,0.80309491]
[1749931487118,0.79711,2508.1,2508.0,0.00597491]
[1749931489515,0.79711,2508.1,2508.0,0.07406759]
[1749931492614,4.00491,2508.1,2508.0,0.07406759]
[1749931493114,4.00491,2508.1,2508.0,0.00799588]
[1749931496018,3.2078,2508.4,2508.2,0.79705]
[1749931496214,3.2078,2508.4,2508.0,1.28059588]
[1749931496420,0.7971,2508.2,2508.1,0.79708]
[1749931496623,0.79711,2508.1,2508.0,1.28059588]
[1749931497121,4.00491,2508.1,2508.0,0.00799588]
[1749931499223,5.10455821,2508.1,2508.0,0.00093751]
[1749931500126,5.10455821,2508.1,2507.2,6.532]
[1749931500127,0.79736,2507.3,2507.2,6.532]
[1749931500323,6.532,2507.4,2506.6,3.2078]
[1749931500629,0.79764,2506.5,2506.3,3.2078]
[1749931500930,3.2078,2507.0,2506.7,0.79754]
[1749931501126,3.2078,2507.0,2506.9,0.79749]
[1749931501324,0.00597491,2507.1,2507.0,0.79746]
[1749931501521,0.00597491,2507.1,2507.0,3.45346]
[1749931501823,0.00597491,2507.1,2507.0,8.45346]
[1749931502525,0.00597491,2507.1,2507.0,3.34366759]
[1749931502828,0.00597491,2507.1,2507.0,8.34366759]
[1749931503027,0.00597491,2507.1,2507.0,39.66166759]
[1749931503720,0.00597491,2507.1,2506.9,4.00527]
[1749931503921,0.79751,2506.9,2506.5,1.9997]
[1749931504121,0.00597491,2507.1,2506.5,26.7787]
[1749931504323,1.10163135,2507.0,2506.9,0.79748]
[1749931504520,1.10163135,2507.0,2506.7,1.3551]
[1749931504719,0.80340491,2507.1,2507.0,0.06809268]
[1749931504923,1.10722665,2507.1,2507.0,0.06809268]
[1749931505128,1.90464665,2507.1,2507.0,0.06809268]
[1749931506135,1.10722665,2507.1,2507.0,0.06809268]
[1749931506430,0.79765,2506.4,2505.9,3.2078]
[1749931506626,0.79765,2506.4,2506.0,1.3493]
[1749931506829,4.00533,2506.8,2506.6,0.79758]
[1749931507033,1.10177403,2506.7,2506.6,0.79758]
[1749931507234,1.10177403,2506.7,2506.6,1.45518]
[1749931507930,1.10177403,2506.7,2506.6,7.98818]
[1749931508328,1.10177403,2506.7,2506.6,1.45518]
[1749931508536,1.10177403,2506.7,2506.6,7.98918]
[1749931509531,1.10177403,2506.7,2506.6,12.98918]
[1749931509838,0.00597491,2507.1,2507.0,0.86555268]
[1749931510037,1.90686106,2507.1,2507.0,0.06809268]
[1749931511230,1.90758463,2507.1,2507.0,0.06809268]
[1749931514229,1.11016463,2507.1,2507.0,0.86555268]
[1749931514933,1.90758463,2507.1,2507.0,0.06809268]
[1749931515828,0.79766,2506.4,2506.3,6.534]
[1749931516034,1.90153378,2506.4,2506.3,6.534]
[1749931516235,0.7979,2505.6,2505.5,3.2078]
[1749931516438,0.7979,2505.6,2504.8,3.8641]
[1749931516439,3.2078,2505.6,2504.8,3.8641]
[1749931516732,0.79811,2505.0,2504.8,1.45443]
[1749931517030,1.10237695,2504.9,2504.7,7.2042]
[1749931517233,1.90053695,2504.8,2504.7,7.2042]
[1749931517429,1.10237695,2504.8,2504.6,0.7982]
[1749931517630,4.00591,2505.0,2504.5,9.7438]
[1749931517937,0.79816,2504.8,2504.6,6.536]
[1749931518135,3.2078,2505.0,2504.5,3.2078]
[1749931518331,0.79818,2504.8,2504.5,0.79823]
[1749931518531,1.10006905,2504.7,2504.6,0.40893731]
[1749931518824,3.2078,2505.0,2504.5,3.2078]
[1749931519030,3.2078,2505.0,2504.8,0.79814]
[1749931519335,0.7982,2504.7,2504.5,3.2078]
[1749931519533,1.3288,2504.9,2504.5,4.00603]
[1749931519736,0.79817,2504.8,2504.5,3.2078]
[1749931520032,3.2078,2505.0,2504.6,0.79819]
[1749931520234,0.7982,2504.7,2504.5,3.27589268]
[1749931520535,0.79822,2504.6,2504.5,0.06809268]
[1749931520837,1.3288,2504.6,2504.1,0.79835]
[1749931521035,1.3288,2504.6,2503.8,9.9408]
[1749931521036,2.12702,2504.6,2504.5,0.06809268]
[1749931521230,3.2078,2504.7,2504.5,0.00822468]
[1749931521431,0.6686,2504.9,2504.5,0.00822468]
[1749931521638,0.79818,2504.8,2504.5,0.80645468]
[1749931522635,3.2078,2505.0,2504.5,0.00822468]
[1749931522834,3.2078,2505.0,2504.8,0.79815]
[1749931523044,3.2078,2505.0,2504.9,0.79812]
[1749931523743,0.68288695,2505.5,2505.0,0.79807]
[1749931523933,0.68288695,2505.5,2504.9,0.7981]
[1749931524140,0.79814,2504.9,2504.7,0.79819]
[1749931524642,0.79811,2505.0,2504.7,0.79819]
[1749931524842,3.2078,2505.1,2504.5,7.42412468]
[1749931525038,1.2723,2505.0,2504.5,0.69012468]
[1749931525245,0.7982,2504.7,2504.5,1.48836468]
[1749931525438,1.2723,2505.0,2504.5,1.48836468]
[1749931525439,0.79817,2504.8,2504.5,1.48836468]
[1749931525642,0.79817,2504.8,2504.6,0.79821]
[1749931525845,0.79817,2504.8,2504.5,0.69012468]
[1749931526050,0.79817,2504.8,2504.6,0.79821]
[1749931526244,1.9589,2505.0,2504.5,0.69012468]
[1749931526539,3.2078,2504.8,2504.5,0.00822468]
[1749931526741,0.79822,2504.6,2504.5,0.00822468]
[1749931528439,2.12662,2504.6,2504.5,0.00822468]
[1749931528636,2.12662,2504.6,2503.7,2.0695]
[1749931528637,1.99566,2504.5,2503.7,2.0695]
[1749931528949,0.79836,2504.2,2503.7,1.3879]
[1749931529243,0.79837,2504.2,2504.0,0.79839]
[1749931529743,1.99607,2504.0,2503.0,3.2078]
[1749931529936,0.7987,2503.1,2503.0,3.2078]
[1749931530143,0.79875,2503.0,2502.6,7.53485]
[1749931530437,1.99675,2503.1,2502.4,1.9587]
[1749931530639,1.2942,2503.1,2502.4,1.9587]
[1749931530855,3.2078,2502.9,2501.9,3.2078]
[1749931531141,1.9463,2502.8,2501.9,3.2078]
[1749931531352,0.6268,2503.4,2502.6,3.2078]
[1749931531538,1.2942,2503.7,2503.0,3.2078]
[1749931531735,1.2942,2503.7,2503.1,8.0191]
[1749931532146,0.00598695,2503.8,2503.5,3.2078]
[1749931532343,0.79852,2503.7,2503.1,8.0191]
[1749931532543,4.01226695,2503.8,2503.4,0.79858]
[1749931533050,4.01226695,2503.8,2503.2,6.737]
[1749931533051,0.00598695,2503.8,2503.7,0.79851]
[1749931533557,0.00598695,2503.8,2503.7,6.737]
[1749931534248,0.00598695,2503.8,2503.7,7.53551]
[1749931534645,0.00598695,2503.8,2503.7,0.79851]
[1749931535147,0.00598695,2503.8,2503.7,0.86660268]
[1749931535348,0.00598695,2503.8,2503.7,2.22390268]
[1749931536347,0.80445695,2503.8,2503.7,0.06809268]
[1749931537044,0.00598695,2503.8,2503.7,0.06809268]
[1749931537250,0.80446695,2503.8,2503.7,0.06809268]
[1749931538355,0.00598695,2503.8,2503.7,0.86660268]
[1749931538651,0.00598695,2503.8,2503.7,4.07440268]
[1749931539050,0.00598695,2503.8,2503.7,10.81240268]
[1749931539251,3.2078,2504.4,2503.7,40.47789268]
[1749931539455,3.2078,2504.4,2503.7,37.47412268]
[1749931539653,4.00611,2504.4,2504.2,0.79834]
[1749931540265,0.79831,2504.4,2504.2,0.79834]
[1749931540861,0.70118695,2504.6,2504.2,0.79834]
[1749931541360,0.79831,2504.4,2504.2,0.79834]
[1749931541558,0.79832,2504.3,2504.2,0.79834]
[1749931542065,0.79835,2504.2,2504.1,1.253]
[1749931542358,0.79833,2504.3,2504.1,1.253]
[1749931542562,0.79831,2504.4,2504.2,0.79833]
[1749931542756,0.79832,2504.3,2504.2,0.79833]
[1749931543058,0.79831,2504.4,2504.2,0.79833]
[1749931543264,0.70118695,2504.6,2504.2,0.79833]
[1749931543561,0.79832,2504.3,2504.2,0.79833]
[1749931544061,1.99564,2504.5,2504.1,7.991]
[1749931544261,0.79834,2504.3,2504.1,1.253]
[1749931544560,0.79834,2504.3,2504.1,2.05136]
[1749931544855,0.79835,2504.2,2504.1,2.05136]
[1749931545058,0.79834,2504.3,2504.2,0.79835]
[1749931545260,0.79829,2504.4,2504.3,0.7983]
[1749931545462,0.79834,2504.3,2504.2,0.79834]
[1749931545653,1.90424068,2504.3,2504.2,0.79834]
[1749931545853,1.10590068,2504.3,2504.2,0.79834]
[1749931546052,0.79831,2504.4,2504.3,0.79832]
[1749931546252,1.90420888,2504.4,2504.3,0.79832]
[1749931546456,1.10589888,2504.4,2504.3,0.79832]
[1749931546760,0.00598695,2504.6,2504.5,0.79825]
[1749931547064,1.9116899,2504.6,2504.5,0.79825]
[1749931547359,0.79832,2504.3,2504.2,1.3419]
[1749931547657,0.79838,2504.1,2504.0,3.21378695]
[1749931547862,0.79837,2504.2,2504.0,4.01217695]
[1749931548256,0.79838,2504.1,2504.0,3.21378695]
[1749931548460,1.90624446,2504.1,2504.0,3.21378695]
[1749931548657,1.10786446,2504.1,2504.0,10.75019695]
[1749931548863,0.00598695,2504.6,2504.3,0.79831]
[1749931549067,0.7983,2504.4,2504.3,0.79831]
[1749931549259,1.90613173,2504.4,2504.3,0.79831]
[1749931549565,1.10783173,2504.4,2504.3,0.79831]
[1749931549855,1.90611173,2504.4,2504.3,0.79831]
[1749931550559,1.10783173,2504.4,2504.1,1.2735]
[1749931550761,0.7983,2504.4,2504.3,0.7983]
[1749931550961,1.90634056,2504.4,2504.2,0.79832]
[1749931551158,0.7983,2504.4,2504.3,1.3316]
[1749931551359,1.90592905,2504.4,2504.3,2.75742]
[1749931551861,1.90592905,2504.4,2504.3,1.9591]
[1749931552658,1.90592905,2504.4,2504.3,2.75742]
[1749931553565,1.90592905,2504.4,2504.3,1.9591]
[1749931555266,1.10762905,2504.4,2504.3,2.75742]
[1749931555458,1.90677723,2504.5,2504.3,1.9591]
[1749931555660,1.10851723,2504.4,2504.3,2.75742]
[1749931555861,1.90693326,2504.5,2504.4,0.79828]
[1749931556066,1.90693037,2504.5,2504.4,2.12038]
[1749931556269,1.90693037,2504.5,2504.4,1.3221]
[1749931556657,0.79828,2504.4,2504.3,0.6275]
[1749931556970,1.90695037,2504.4,2504.3,7.5455]
[1749931557163,1.10867037,2504.4,2504.0,4.60397963]
[1749931557461,0.79838,2504.1,2504.0,11.52197963]
[1749931557659,0.79838,2504.1,2504.0,3.28187963]
[1749931557860,1.90702283,2504.1,2504.0,0.07407963]
[1749931558660,0.79857,2503.5,2503.4,0.6617]
[1749931558862,0.79851,2503.7,2503.6,0.79852]
[1749931559269,0.79854,2503.6,2503.5,0.79855]
[1749931559568,0.79854,2503.6,2503.5,2.07185]
[1749931559971,0.79857,2503.5,2503.4,0.6617]
[1749931560167,0.79867,2503.2,2503.1,10.1268]
[1749931560369,0.79867,2503.2,2503.1,6.919]
[1749931560668,3.52331977,2503.3,2502.5,24.152]
[1749931560860,3.2078,2503.0,2502.5,2.0462]
[1749931561165,0.79886,2502.6,2502.5,2.0462]
[1749931561466,1.90588164,2502.6,2502.5,0.6617]
[1749931562368,0.79886,2502.6,2502.5,0.6617]
[1749931562967,0.79893,2502.4,2502.2,1.3845]
[1749931563270,0.79892,2502.4,2502.3,6.92]
[1749931563470,4.4655,2503.0,2502.3,6.92]
[1749931563662,0.00598695,2503.2,2502.8,3.2078]
[1749931563864,0.00598695,2503.2,2503.0,0.79872]
[1749931564165,0.00598695,2503.2,2503.1,0.7987]
[1749931564370,0.00598695,2503.2,2503.1,4.0065]
[1749931564564,0.79853,2503.7,2503.4,0.79857]
[1749931564765,3.2078,2503.8,2503.5,2.77386]
[1749931564970,0.79852,2503.7,2503.5,2.77386]
[1749931565167,3.2078,2503.8,2503.6,0.79852]
[1749931565567,4.0063,2503.8,2503.6,0.79852]
[1749931565763,0.79854,2503.6,2503.5,1.9753]
[1749931565960,4.00629,2503.8,2503.6,0.79852]
[1749931566165,3.2078,2503.8,2503.6,0.79852]
[1749931566366,0.79852,2503.7,2503.5,2.77386]
[1749931566772,0.79852,2503.7,2503.6,0.79854]
[1749931567178,0.79852,2503.7,2503.5,2.77385]
[1749931567373,0.67958695,2504.0,2503.9,0.79844]
[1749931567573,0.00598695,2504.0,2503.6,3.2078]
[1749931567777,0.00598695,2504.0,2503.7,1.344]
[1749931567974,0.80441695,2504.0,2503.8,0.79846]
[1749931568570,0.79844,2503.9,2503.7,1.344]
[1749931568764,0.00598695,2504.0,2503.7,4.5518]
[1749931569074,0.80441695,2504.0,2503.8,0.79845]
[1749931569270,0.79844,2503.9,2503.8,0.79845]
[1749931569966,0.80441695,2504.0,2503.8,0.79845]
[1749931570271,0.80440695,2504.0,2503.9,0.79844]
[1749931570671,0.80440695,2504.0,2503.8,0.79846]
[1749931571068,0.00598695,2504.0,2503.9,0.79844]
[1749931572467,0.80442695,2504.0,2503.7,4.5518]
[1749931572671,0.80442695,2504.0,2503.9,0.79844]
[1749931574169,0.00598695,2504.0,2503.9,0.79844]
[1749931574477,0.00598695,2504.0,2503.9,7.71844]
[1749931575072,0.80439695,2504.0,2503.9,7.71844]
[1749931575279,0.00598695,2504.0,2503.9,7.71844]
[1749931575577,0.00598695,2504.0,2503.9,38.11044]
[1749931575775,3.2078,2504.7,2503.9,37.312]
[1749931575975,0.7983,2504.4,2504.3,0.79831]
[1749931576580,0.79831,2504.3,2504.2,1.48672]
[1749931577180,0.7983,2504.4,2504.3,0.79831]
[1749931577380,0.80426695,2504.5,2504.4,0.79828]
[1749931577677,0.7983,2504.4,2504.3,0.7983]
[1749931579581,0.00598695,2504.5,2504.4,0.79828]
[1749931579781,0.80423695,2504.5,2504.4,0.79828]
[1749931580082,0.00598695,2504.5,2504.4,0.79828]
[1749931580379,0.00598695,2504.5,2504.4,5.33038]
[1749931580580,0.80423695,2504.5,2504.4,5.33038]
[1749931580882,0.00598695,2504.5,2504.4,5.33038]
[1749931581380,0.80423695,2504.5,2504.4,5.33038]
[1749931581580,0.00598695,2504.5,2504.4,5.33038]
[1749931583981,0.80423695,2504.5,2504.4,5.33038]
[1749931584181,0.00598695,2504.5,2504.4,5.33038]
[1749931586085,0.80423695,2504.5,2504.4,5.33038]
[1749931586586,0.80423695,2504.5,2504.4,4.5321]
[1749931586885,0.80423695,2504.5,2504.4,5.33038]
[1749931588087,0.00598695,2504.5,2504.4,5.33038]
[1749931588285,3.2078,2505.3,2504.6,1.99555]
[1749931588482,3.2078,2504.9,2504.4,3.2078]
[1749931588687,0.79828,2504.4,2504.3,0.06809268]
[1749931588884,0.79828,2504.5,2504.3,6.92109268]
[1749931589183,0.79828,2504.4,2504.3,6.92109268]
[1749931589391,0.79828,2504.4,2504.3,7.71940268]
[1749931589882,0.79828,2504.4,2504.3,6.92109268]
[1749931590085,0.79828,2504.4,2504.3,0.06809268]
[1749931591384,5.0,2504.4,2503.8,24.154]
[1749931591587,5.0,2504.4,2503.4,7.28991067]
[1749931591588,0.79857,2503.5,2503.4,6.85798695]
[1749931591885,0.79857,2503.5,2503.4,7.65656695]
[1749931592086,1.3149,2503.8,2503.4,6.85798695]
[1749931592295,0.79857,2503.5,2503.4,7.65657695]
[1749931592588,2.6679,2503.8,2503.4,6.85798695]
[1749931592889,0.79857,2503.5,2503.4,6.85798695]
[1749931593789,0.79857,2503.5,2503.4,0.00598695]
[1749931595194,0.79857,2503.5,2503.4,0.07407963]
[1749931596885,0.79873,2503.0,2502.9,24.15]
[1749931597693,0.79876,2502.9,2502.8,6.854]
[1749931598088,0.79883,2502.7,2502.6,0.00598695]
[1749931599090,0.79881,2502.8,2502.7,0.7988]
[1749931599492,0.79883,2502.7,2502.6,0.80481695]
[1749931599692,0.79882,2502.8,2502.7,0.79882]
[1749931600192,0.79873,2503.0,2502.9,0.79874]
[1749931600396,0.69258695,2503.1,2502.6,0.00598695]
[1749931600589,0.79883,2502.7,2502.6,0.00598695]
[1749931600993,5.79883,2502.7,2502.6,0.00598695]
[1749931601492,0.79883,2502.7,2502.6,0.00598695]
[1749931602288,6.10569182,2502.7,2501.8,0.6544]
[1749931602590,3.2078,2502.0,2501.6,6.855]
[1749931602996,3.2078,2502.0,2501.7,0.79913]